lending/lending_fUSD_20241113
["ID","MTS","AMOUNT","RATE_DAILY","PERIOD"]
[342167178,1731527169707,-150.0,9.507e-05,2]
[342167179,1731527169734,-604.34,9.51e-05,2]
[342167180,1731527169761,-604.34,9.512e-05,2]
[342167181,1731527169787,-604.34,9.515e-05,2]
[342167182,1731527169815,-604.34,9.517e-05,2]
[342167183,1731527169842,-604.34,9.52e-05,2]
[342167184,1731527169869,-604.34,9.522e-05,2]
[342167185,1731527169903,-604.34,9.525e-05,2]
[342167186,1731527169930,-604.34,9.527e-05,2]
[342167187,1731527169957,-604.34,9.53e-05,2]
[342167188,1731527169984,-604.34,9.532e-05,2]
[342167189,1731527170014,-604.34,9.535e-05,2]
[342167190,1731527170055,-604.34,9.537e-05,2]
[342167191,1731527170083,-604.34,9.54e-05,2]
[342167192,1731527170110,-604.34,9.542e-05,2]
[342167193,1731527170142,-604.34,9.545e-05,2]
[342167194,1731527170171,-604.34,9.547e-05,2]
[342167195,1731527170201,-604.34,9.55e-05,2]
[342167196,1731527170228,-604.34,9.552e-05,2]
[342167197,1731527170259,-604.34,9.555e-05,2]
[342167198,1731527170288,-604.34,9.557e-05,2]
[342167199,1731527170318,-156.31,9.56e-05,2]
[342167200,1731527170351,-362.32,9.578e-05,2]
[342167201,1731527220167,200.0,9.1e-05,3]
[342167202,1731527223771,500.0,9.2e-05,3]
[342167203,1731527224459,800.0,9.3e-05,3]
[342167204,1731527226567,1100.0,9.4e-05,3]
[342167205,1731527228718,1400.0,9.5e-05,3]
[342167206,1731527286742,150.00000001,9e-05,2]
[342167207,1731527292996,672.0,9.196e-05,2]
[342167208,1731527313000,170.81,9.436e-05,2]
[342167226,1731527431845,-200.0,9.6e-05,3]
[342167227,1731527431855,-675.65439355,9.606e-05,2]
[342167228,1731527431871,-101.34560645,9.606e-05,2]
[342167229,1731527431880,-200.0,9.7e-05,3]
[342167230,1731527431890,-1000.0,9.786e-05,2]
[342167231,1731527431900,-200.0,9.8e-05,3]
[342167232,1731527431910,-263.548,9.8e-05,2]
[342167233,1731527431919,-160.0,9.874e-05,2]
[342167234,1731527431929,-300.0,9.899e-05,2]
[342167235,1731527431940,-12696.94540147,9.9e-05,2]
[342167236,1731527431974,-300.0,9.9e-05,2]
[342167237,1731527431986,-754.73572568,9.9e-05,2]
[342167238,1731527432093,-1232.79841512,9.9e-05,2]
[342167299,1731527436536,166.21,9.46e-05,2]
[342167302,1731527437658,-611.86307641,9.9e-05,2]
[342167304,1731527437801,-17597.35212802,9.9e-05,2]
[342167305,1731527437813,-19003.1665533,9.9e-05,2]
[342167306,1731527437822,-1000.0,9.9e-05,2]
[342167307,1731527437832,-995.0,9.9e-05,2]
[342167308,1731527437842,-1000.0,9.9e-05,2]
[342167309,1731527437852,-1000.0,9.9e-05,2]
[342167310,1731527437862,-1000.0,9.9e-05,2]
[342167311,1731527437874,-1000.0,9.9e-05,2]
[342167312,1731527437883,-1000.0,9.9e-05,2]
[342167313,1731527437892,-1000.0,9.9e-05,2]
[342167314,1731527437902,-1000.0,9.9e-05,2]
[342167315,1731527437912,-1000.0,9.9e-05,2]
[342167316,1731527437923,-1000.0,9.9e-05,2]
[342167317,1731527437932,-1000.0,9.9e-05,2]
[342167318,1731527437941,-1000.0,9.9e-05,2]
[342167319,1731527437950,-1000.0,9.9e-05,2]
[342167320,1731527437959,-1000.0,9.9e-05,2]
[342167321,1731527437968,-1000.0,9.9e-05,2]
[342167322,1731527437978,-1000.0,9.9e-05,2]
[342167323,1731527437987,-710.0,9.9e-05,2]
[342167324,1731527437996,-1000.0,9.9e-05,2]
[342167325,1731527438006,-1000.0,9.9e-05,2]
[342167326,1731527438016,-500.46,9.9e-05,2]
[342167327,1731527438026,-200.0,9.9e-05,3]
[342167328,1731527438035,-1000.0,9.9e-05,2]
[342167329,1731527438044,-2500.0,9.9e-05,2]
[342167330,1731527438054,-870.6,9.9e-05,2]
[342167331,1731527438063,-450.0,9.9e-05,2]
[342167332,1731527438073,-170.81,9.955e-05,2]
[342167333,1731527438082,-352.65116395,9.973e-05,2]
[342167334,1731527438098,-147.34883605,9.973e-05,2]
[342167335,1731527438107,-9960.1059765,9.992e-05,2]
[342167336,1731527438116,-3336.8803463,9.992e-05,2]
[342167337,1731527438126,-310.58302352,9.992e-05,2]
[342167338,1731527438138,-714.84246708,9.992e-05,2]
[342167339,1731527438147,-150.01,9.999e-05,2]
[342167340,1731527438157,-1965.83894385,9.999e-05,2]
[342167341,1731527438166,-2417.49566647,9.999e-05,2]
[342167342,1731527438176,-1183.0,0.0001,2]
[342167343,1731527438185,-23305.45892584,0.0001,2]
[342167366,1731527438823,-2272.81200373,0.0001,2]
[342167367,1731527438835,-3121.66586252,0.0001,2]
[342167368,1731527438852,-451.51106,0.0001,2]
[342167369,1731527438863,-902.82192,0.0001,2]
[342167370,1731527438915,-1100629.09539588,0.0001,2]
[342167371,1731527438925,-15459.0,0.0001,2]
[342167372,1731527438934,-1012166.99094787,0.0001,2]
[342167373,1731527438947,-1623.99985,0.0001,2]
[342167381,1731527439718,-1671.3358655,0.0001,2]
[342167385,1731527439922,-5342.04804275,0.0001,2]
[342167386,1731527439934,-297.75698508,0.0001,2]
[342167387,1731527439945,-8998.0,0.0001,2]
[342167388,1731527439956,-2595.40584699,0.0001,2]
[342167389,1731527439970,-1800.9,0.0001,2]
[342167390,1731527439982,-3264.3,0.0001,2]
[342167391,1731527440093,-8332.0,0.0001,2]
[342167392,1731527440112,-335.58350345,0.0001,2]
[342167396,1731527443223,-4957.33041243,0.0001,2]
[342167397,1731527443234,-3105.98572797,0.0001,2]
[342167398,1731527443246,-2691.30382035,0.0001,2]
[342167399,1731527443257,-7889.61069294,0.0001,2]
[342167400,1731527443268,-7702.0272,0.0001,2]
[342167401,1731527443280,-2971.89485633,0.0001,2]
[342167402,1731527443291,-2251.0,0.0001,2]
[342167403,1731527443302,-900.69,0.0001,2]
[342167404,1731527443312,-13146.2836294,0.0001,2]
[342167405,1731527443323,-6524.24431428,0.0001,2]
[342167406,1731527443408,-988.57203861,0.0001,2]
[342167407,1731527443419,-258.3105903,0.0001,2]
[342167408,1731527443430,-13569.44116048,0.0001,2]
[342167409,1731527443445,-4468.57883952,0.0001,2]
[342167410,1731527443456,-1006.81904742,0.0001,2]
[342167411,1731527443468,-9000.80852549,0.0001,2]
[342167412,1731527443480,-362114.17568285,0.0001,2]
[342167413,1731527443492,-5305.89714811,0.0001,2]
[342167414,1731527443504,-12257.5258784,0.0001,2]
[342167415,1731527443515,-9263.04360957,0.0001,2]
[342167499,1731527445651,-257.60515579,9.999e-05,2]
[342167500,1731527445993,-451.65672262,9.999e-05,2]
[342167501,1731527446004,-89290.73812157,0.0001,2]
[342167502,1731527446016,-403725.73765461,0.0001,2]
[342167503,1731527446028,-397697.61305783,0.0001,2]
[342167504,1731527446040,-671.83579611,0.0001,2]
[342167505,1731527446052,-340.30999928,0.0001,2]
[342167506,1731527446063,-7108.8405631,0.0001,2]
[342167507,1731527446075,-22510.0,0.0001,2]
[342167508,1731527446087,-5233.12946294,0.0001,2]
[342167519,1731527446446,-36792.88779415,0.0001,2]
[342167520,1731527446459,-4874.16384748,0.0001,2]
[342167521,1731527446471,-517.01649371,0.0001,2]
[342167522,1731527446483,-3443.75,0.0001,2]
[342167523,1731527446494,-5528.0,0.0001,2]
[342167524,1731527446509,-2056.2,0.0001,2]
[342167525,1731527446522,-373460.75209777,0.0001,2]
[342167526,1731527479844,-569.0667,9.892e-05,2]
[342167527,1731527480217,-939.0372,9.9e-05,2]
[342167528,1731527480246,-1000.0,9.9e-05,2]
[342167529,1731527480272,-424.11121427,9.992e-05,2]
[342167530,1731527480298,-150.0,9.999e-05,2]
[342167531,1731527480324,-1114.0,0.0001,2]
[342167532,1731527480354,-42999.55714078,0.0001,2]
[342167533,1731527582934,1852.42,9.221e-05,2]
[342167535,1731527624135,11354.21,9.277e-05,2]
[342167536,1731527672437,11090.52991236,9.187e-05,2]
[342167537,1731527686122,-12000.0,9.187e-05,2]
[342167538,1731527701078,336.94,0.00016658,30]
[342167539,1731527743976,-1000.0,9.129e-05,2]
[342167540,1731527744003,-250.0,9.145e-05,2]
[342167541,1731527744030,-750.0,9.187e-05,2]
[342167542,1731527781196,-178.8822267,8.219e-05,2]
[342167543,1731527791245,-1552.0877733,8.219e-05,2]
[342167544,1731527791271,-59.47008764,9.187e-05,2]
[342167545,1731527791297,-322.0,9.703e-05,2]
[342167546,1731527791324,-5428.93,9.709e-05,2]
[342167547,1731527791351,-161.81,9.724e-05,2]
[342167548,1731527791377,-200.0,9.738e-05,2]
[342167549,1731527791852,-250.0,9.777e-05,2]
[342167550,1731527791880,-27025.70213906,9.8e-05,2]
[342167551,1731528197167,-161.71,9.178e-05,2]
[342167552,1731528197194,-897.25,9.191e-05,2]
[342167553,1731528197220,-941.04,9.191e-05,2]
[342167555,1731528431581,-382.03,9.12e-05,2]
[342167556,1731528431603,-300.0,9.17e-05,2]
[342167557,1731528431625,-250.0,9.17e-05,2]
[342167558,1731528431648,-155.41580484,9.191e-05,2]
[342167559,1731528431671,-262.4,9.197e-05,2]
[342167560,1731528431693,-170.81,9.458e-05,2]
[342167561,1731528431716,-2000.0,9.632e-05,2]
[342167562,1731528431738,-2831.67,9.662e-05,2]
[342167563,1731528431766,-302.33,9.752e-05,2]
[342167564,1731528431792,-1000.0,9.799e-05,2]
[342167565,1731528431814,-150.0,9.799e-05,2]
[342167566,1731528431837,-15832.51446094,9.8e-05,2]
[342167567,1731528431865,-7230.4196,9.8e-05,2]
[342167568,1731528431887,-569.0667,9.8e-05,2]
[342167569,1731528431909,-939.0372,9.8e-05,2]
[342167570,1731528431932,-1000.0,9.8e-05,2]
[342167571,1731528431959,-7342.1071,9.8e-05,2]
[342167572,1731528431983,-2020.2892,9.8e-05,2]
[342167573,1731528432009,-263.548,9.8e-05,2]
[342167574,1731528432031,-2500.0,9.8e-05,2]
[342167575,1731528432053,-3503.3471,9.8e-05,2]
[342167576,1731528432075,-1000.0,9.9e-05,2]
[342167577,1731528432097,-245000.0,9.9e-05,2]
[342167578,1731528432118,-323.33690313,9.973e-05,2]
[342167579,1731528432144,-502.46337783,9.973e-05,2]
[342167580,1731528432166,-500.47591291,9.973e-05,2]
[342167581,1731528432189,-500.0,9.973e-05,2]
[342167582,1731528432213,-150.0,9.98e-05,2]
[342167583,1731528432234,-432.08,9.98e-05,2]
[342167584,1731528432262,-1135.4113501,9.993e-05,2]
[342167585,1731528432286,-10532.9119051,9.993e-05,2]
[342167586,1731528432308,-3499.8313365,9.993e-05,2]
[342167587,1731528432330,-1214.0,0.0001,2]
[342167588,1731528432357,-25003314.01810143,0.0001,2]
[342167589,1731528432380,-901.41787863,0.0001,2]
[342167590,1731528432403,-324.73195423,0.0001,2]
[342167591,1731528432429,-2106.95336067,0.0001,2]
[342167592,1731528432452,-3792.81508798,0.0001,2]
[342167593,1731528432476,-340.76647871,0.0001,2]
[342167594,1731528432508,-299.99,0.0001,2]
[342167595,1731528432534,-736.12975422,0.0001,2]
[342167596,1731528432558,-736.12975422,0.0001,2]
[342167597,1731528432582,-736.12975422,0.0001,2]
[342167598,1731528432606,-1156.54085614,0.0001,2]
[342167599,1731528432630,-3094.47212278,0.0001,2]
[342167600,1731528432653,-158.82650506,0.0001,2]
[342167601,1731528432677,-1138.96905373,0.0001,2]
[342167602,1731528432702,-3000.0,0.0001,2]
[342167603,1731528432725,-150.0,0.00010055,2]
[342167604,1731528432760,-301.67,0.00010055,2]
[342167605,1731528432787,-150.0,0.00010082,2]
[342167606,1731528432810,-150.0,0.00010082,2]
[342167607,1731528432836,-421.29,0.000101,2]
[342167608,1731528432863,-151.44,0.0001021,2]
[342167609,1731528432887,-151.44,0.00010215,2]
[342167610,1731528432911,-151.44,0.00010219,2]
[342167611,1731528432935,-432.63,0.00010219,2]
[342167612,1731528432960,-151.44,0.00010223,2]
[342167613,1731528432984,-151.44,0.00010227,2]
[342167614,1731528433014,-151.44,0.00010232,2]
[342167615,1731528433038,-167.0,0.00010235,2]
[342167616,1731528433062,-151.44,0.00010236,2]
[342167617,1731528433085,-151.44,0.0001024,2]
[342167618,1731528433108,-151.44,0.00010244,2]
[342167619,1731528433130,-151.44,0.00010249,2]
[342167620,1731528433153,-151.44,0.00010253,2]
[342167621,1731528433175,-151.44,0.00010257,2]
[342167622,1731528433197,-151.44,0.00010261,2]
[342167623,1731528433220,-1000.0,0.0001027,2]
[342167624,1731528433248,-408.5003409,0.00010297,2]
[342167625,1731528433270,-151.59,0.000103,2]
[342167626,1731528433293,-672.0,0.00010346,2]
[342167627,1731528433320,-262.4,0.00010346,2]
[342167628,1731528433343,-1730.97,0.00010431,2]
[342167629,1731528433366,-170.81,0.00010474,2]
[342167630,1731528433388,-500.0,0.00010521,2]
[342167631,1731528433411,-408.5003409,0.00010612,2]
[342167632,1731528433435,-161.71,0.00010708,2]
[342167633,1731528433459,-255.0,0.00010779,2]
[342167634,1731528433481,-977.71759158,0.000108,2]
[342167635,1731528433507,-1538.0,0.000108,2]
[342167636,1731528433530,-408.5003409,0.00010821,2]
[342167637,1731528433553,-725.53,0.00010877,2]
[342167638,1731528433579,-13933.17131442,0.00010899,2]
[342167639,1731528433606,-13933.17131437,0.00010899,2]
[342167640,1731528433631,-13933.17131437,0.00010899,2]
[342167641,1731528433656,-13933.17131437,0.00010899,2]
[342167642,1731528433681,-13933.17131437,0.00010899,2]
[342167643,1731528433706,-13933.17131437,0.00010899,2]
[342167644,1731528433731,-13933.17131437,0.00010899,2]
[342167645,1731528433761,-13933.17131437,0.00010899,2]
[342167646,1731528433788,-13933.17131437,0.00010899,2]
[342167647,1731528433815,-13933.17131437,0.00010899,2]
[342167648,1731528433839,-163.88824741,0.00010899,2]
[342167649,1731528433863,-163.88824736,0.00010899,2]
[342167650,1731528433886,-163.88824736,0.00010899,2]
[342167651,1731528433909,-163.88824736,0.00010899,2]
[342167652,1731528433934,-163.88824736,0.00010899,2]
[342167653,1731528433958,-163.88824736,0.00010899,2]
[342167654,1731528433980,-163.88824736,0.00010899,2]
[342167655,1731528434306,-1009.50697387,0.000109,2]
[342167656,1731528434342,-1009.50697386,0.000109,2]
[342167657,1731528434368,-1009.50697386,0.000109,2]
[342167658,1731528434394,-1009.50697386,0.000109,2]
[342167659,1731528434419,-1009.50697386,0.000109,2]
[342167660,1731528434442,-1009.50697386,0.000109,2]
[342167661,1731528434465,-1009.50697386,0.000109,2]
[342167662,1731528434489,-1009.50697386,0.000109,2]
[342167663,1731528434517,-500.0,0.00010958,2]
[342167664,1731528434543,-500.0,0.00010958,2]
[342167665,1731528434567,-500.0,0.00010958,2]
[342167666,1731528434590,-599.5347299,0.00010958,2]
[342167667,1731528434614,-500.0,0.00010958,2]
[342167668,1731528434638,-500.0,0.00010958,2]
[342167669,1731528434662,-500.0,0.00010958,2]
[342167670,1731528434687,-500.0,0.00010958,2]
[342167671,1731528434711,-500.0,0.00010958,2]
[342167672,1731528434736,-500.0,0.00010958,2]
[342167673,1731528434766,-500.0,0.00010958,2]
[342167674,1731528434793,-500.0,0.00010958,2]
[342167675,1731528434818,-157.18290822,0.00010958,2]
[342167676,1731528434844,-500.0,0.00010958,2]
[342167677,1731528434868,-500.0,0.00010958,2]
[342167678,1731528434891,-500.0,0.00010958,2]
[342167679,1731528434914,-500.0,0.00010958,2]
[342167680,1731528434939,-500.0,0.00010958,2]
[342167681,1731528434963,-502.35968214,0.00010958,2]
[342167682,1731528434987,-500.0,0.00010958,2]
[342167683,1731528435020,-500.0,0.00010958,2]
[342167684,1731528435044,-500.0,0.00010958,2]
[342167685,1731528435068,-500.0,0.00010958,2]
[342167686,1731528435093,-500.0,0.00010958,2]
[342167687,1731528435117,-600.0,0.00010958,2]
[342167688,1731528435140,-512.25573248,0.00010958,2]
[342167689,1731528435163,-500.0,0.00010958,2]
[342167690,1731528435186,-500.0,0.00010958,2]
[342167691,1731528435209,-178.93742531,0.00010958,2]
[342167692,1731528435232,-500.0,0.00010958,2]
[342167693,1731528435258,-500.0,0.00010958,2]
[342167694,1731528435282,-250.8539924,0.00010958,2]
[342167695,1731528435304,-500.0,0.00010958,2]
[342167696,1731528435325,-500.0,0.00010958,2]
[342167697,1731528435347,-500.0,0.00010958,2]
[342167698,1731528435372,-419.48384218,0.00010958,2]
[342167699,1731528435396,-252.66635537,0.00010958,2]
[342167700,1731528435419,-271.76472322,0.00010958,2]
[342167701,1731528435441,-500.0,0.00010958,2]
[342167702,1731528435462,-500.0,0.00010958,2]
[342167703,1731528435485,-500.0,0.00010958,2]
[342167704,1731528435509,-396.46490842,0.00010958,2]
[342167705,1731528435531,-416.44843035,0.00010958,2]
[342167706,1731528435554,-500.0,0.00010958,2]
[342167707,1731528435581,-500.0,0.00010958,2]
[342167708,1731528435607,-159.41731174,0.00010958,2]
[342167709,1731528435631,-500.0,0.00010958,2]
[342167710,1731528435655,-500.0,0.00010958,2]
[342167711,1731528435680,-500.0,0.00010958,2]
[342167712,1731528435703,-500.0,0.00010958,2]
[342167713,1731528435726,-500.0,0.00010958,2]
[342167714,1731528435759,-500.0,0.00010958,2]
[342167715,1731528435787,-500.0,0.00010958,2]
[342167716,1731528435812,-363.3002,0.00010958,2]
[342167717,1731528435838,-463.40462932,0.00010958,2]
[342167718,1731528435864,-3553.09031158,0.00010958,2]
[342167719,1731528435888,-500.0,0.00010958,2]
[342167720,1731528435913,-500.0,0.00010958,2]
[342167721,1731528435936,-500.0,0.00010958,2]
[342167722,1731528435962,-500.0,0.00010958,2]
[342167723,1731528435988,-500.0,0.00010958,2]
[342167724,1731528436021,-413.8225113,0.00010958,2]
[342167725,1731528436044,-500.0,0.00010958,2]
[342167726,1731528436068,-500.0,0.00010958,2]
[342167727,1731528436092,-500.0,0.00010958,2]
[342167728,1731528436117,-500.0,0.00010958,2]
[342167729,1731528436143,-500.0,0.00010958,2]
[342167730,1731528436168,-1500.0,0.00010958,2]
[342167731,1731528436191,-500.0,0.00010958,2]
[342167732,1731528436213,-500.0,0.00010958,2]
[342167733,1731528436236,-378.95588216,0.00010958,2]
[342167734,1731528436268,-1507.07,0.00010959,2]
[342167735,1731528436291,-250.0,0.00010959,2]
[342167736,1731528436313,-150.0,0.00010959,2]
[342167737,1731528436335,-472.82,0.00010959,2]
[342167738,1731528436357,-20926.0,0.00010959,2]
[342167739,1731528436379,-872.37,0.00010959,2]
[342167740,1731528436402,-250.55,0.00010959,2]
[342167741,1731528436423,-208.79,0.00010959,2]
[342167742,1731528436446,-173.99,0.00010959,2]
[342167743,1731528436472,-1921.82,0.00010959,2]
[342167744,1731528436501,-869.98,0.00010959,2]
[342167745,1731528436526,-170.81,0.00010993,2]
[342167746,1731528436549,-167.0,0.00011015,2]
[342167747,1731528436573,-1160.0,0.00011033,2]
[342167748,1731528436595,-13637.0,0.00011033,2]
[342167749,1731528436619,-1091.0,0.00011033,2]
[342167750,1731528436641,-408.5003409,0.00011039,2]
[342167751,1731528436665,-1000.0,0.000111,2]
[342167752,1731528436688,-408.5003409,0.00011322,2]
[342167753,1731528436712,-1000.0,0.00011411,2]
[342167754,1731528436735,-150.0,0.00011414,2]
[342167755,1731528436764,-282.457,0.00011414,2]
[342167756,1731528436792,-248.804,0.00011414,2]
[342167757,1731528436816,-150.0,0.00011414,2]
[342167758,1731528436840,-453.0,0.00011414,2]
[342167759,1731528436866,-5931.0,0.00011414,2]
[342167760,1731528436888,-1255.0,0.00011414,2]
[342167761,1731528436910,-628.0,0.00011414,2]
[342167762,1731528436932,-1992.0,0.00011414,2]
[342167763,1731528436953,-1924.0,0.00011414,2]
[342167764,1731528436975,-559.0,0.00011414,2]
[342167765,1731528437001,-1259.0,0.00011414,2]
[342167766,1731528437024,-814.0,0.00011414,2]
[342167767,1731528437046,-3745.0,0.00011414,2]
[342167768,1731528437071,-3488.0,0.00011414,2]
[342167769,1731528437094,-922.0,0.00011414,2]
[342167770,1731528437120,-672.0,0.00011495,2]
[342167771,1731528437145,-262.4,0.00011496,2]
[342167772,1731528437169,-1507.07,0.00011507,2]
[342167773,1731528437194,-150.0,0.00011534,2]
[342167774,1731528437221,-170132.11213614,0.000117,2]
[342167775,1731528437251,-2205.40244047,0.00011802,2]
[342167776,1731528437274,-2205.40244047,0.00011802,2]
[342167777,1731528437300,-150.0,0.00011857,2]
[342167778,1731528437324,-172.19548944,0.000119,2]
[342167779,1731528437347,-1450.0,0.00012,2]
[342167780,1731528437372,-153.39,0.00012033,2]
[342167781,1731528437396,-1507.07,0.00012055,2]
[342167782,1731528437419,-3403.99,0.00012055,2]
[342167783,1731528437443,-1526.3,0.00012137,2]
[342167784,1731528437465,-432.63,0.00012137,2]
[342167785,1731528437488,-432.63,0.00012137,2]
[342167786,1731528437518,-432.53,0.00012137,2]
[342167787,1731528437542,-160.554503,0.00012182,3]
[342167788,1731528437565,-150.0,0.00012192,2]
[342167789,1731528437589,-161.71,0.00012238,2]
[342167790,1731528437614,-977591.41425659,0.0001228,2]
[342167791,1731528437638,-166932.70094422,0.0001228,2]
[342167792,1731528437662,-151.0,0.0001228,2]
[342167793,1731528437689,-151.0,0.0001228,2]
[342167794,1731528437712,-156.802339,0.00012329,2]
[342167795,1731528437736,-151.0,0.00012329,2]
[342167796,1731528437769,-222.342482,0.00012329,2]
[342167797,1731528437794,-151.0,0.00012329,2]
[342167798,1731528437818,-230.704315,0.00012329,2]
[342167799,1731528437842,-151.0,0.00012329,2]
[342167800,1731528437865,-151.0,0.00012329,2]
[342167801,1731528437887,-975.23668,0.00012329,2]
[342167802,1731528437911,-975.23668,0.00012329,2]
[342167803,1731528437934,-151.182255,0.00012329,2]
[342167804,1731528437959,-151.0,0.00012329,2]
[342167805,1731528438321,-227.293956,0.00012329,2]
[342167806,1731528438345,-227.293956,0.00012329,2]
[342167807,1731528438370,-151.0,0.00012329,2]
[342167808,1731528438393,-151.0,0.00012329,2]
[342167809,1731528438419,-151.0,0.00012329,2]
[342167810,1731528438441,-151.0,0.00012329,2]
[342167811,1731528438465,-151.0,0.00012329,2]
[342167812,1731528438489,-188.34489,0.00012329,2]
[342167813,1731528438521,-151.0,0.00012329,2]
[342167814,1731528438545,-188.34489,0.00012329,2]
[342167815,1731528438569,-151.0,0.00012329,2]
[342167816,1731528438600,-151.0,0.00012329,2]
[342167817,1731528438625,-184.172904,0.00012329,2]
[342167818,1731528438648,-151.0,0.00012329,2]
[342167819,1731528438675,-151.0,0.00012329,2]
[342167820,1731528438699,-151.0,0.00012329,2]
[342167821,1731528438722,-666.400537,0.00012329,2]
[342167822,1731528438754,-666.400537,0.00012329,2]
[342167823,1731528438780,-151.0,0.00012329,2]
[342167824,1731528438805,-151.0,0.00012329,2]
[342167825,1731528438830,-466.638817,0.00012329,2]
[342167826,1731528438854,-466.638817,0.00012329,2]
[342167827,1731528438877,-151.0,0.00012329,2]
[342167828,1731528438900,-151.0,0.00012329,2]
[342167829,1731528438923,-174.088465,0.00012329,2]
[342167830,1731528438947,-151.0,0.00012329,2]
[342167831,1731528438971,-174.088465,0.00012329,2]
[342167832,1731528439001,-151.0,0.00012329,2]
[342167833,1731528439024,-398.009176,0.00012329,2]
[342167834,1731528439048,-398.009176,0.00012329,2]
[342167835,1731528439073,-151.0,0.00012329,2]
[342167836,1731528439098,-151.0,0.00012329,2]
[342167837,1731528439122,-151.95518,0.00012329,2]
[342167838,1731528439146,-151.95518,0.00012329,2]
[342167839,1731528439169,-151.0,0.00012329,2]
[342167840,1731528439192,-151.0,0.00012329,2]
[342167841,1731528439218,-151.0,0.00012329,2]
[342167842,1731528439241,-151.0,0.00012329,2]
[342167843,1731528439271,-227.405074,0.00012329,2]
[342167844,1731528439295,-151.0,0.00012329,2]
[342167845,1731528439319,-151.0,0.00012329,2]
[342167846,1731528439343,-151.0,0.00012329,2]
[342167847,1731528439368,-151.0,0.00012329,2]
[342167848,1731528439389,-227.405074,0.00012329,2]
[342167849,1731528439412,-151.0,0.00012329,2]
[342167850,1731528439435,-151.0,0.00012329,2]
[342167851,1731528439456,-151.0,0.00012329,2]
[342167852,1731528439479,-151.0,0.00012329,2]
[342167853,1731528439507,-151.0,0.00012329,2]
[342167854,1731528439533,-151.0,0.00012329,2]
[342167855,1731528439558,-151.0,0.00012329,2]
[342167856,1731528439583,-151.0,0.00012329,2]
[342167857,1731528439607,-151.0,0.00012329,2]
[342167858,1731528439631,-167.31366,0.00012329,2]
[342167859,1731528439656,-893.972005,0.00012329,2]
[342167860,1731528439679,-893.972005,0.00012329,2]
[342167861,1731528439700,-598.91132,0.00012329,2]
[342167862,1731528439722,-598.91132,0.00012329,2]
[342167863,1731528439746,-598.91132,0.00012329,2]
[342167864,1731528439775,-177.997683,0.00012329,2]
[342167865,1731528439798,-598.91132,0.00012329,2]
[342167866,1731528439822,-177.997683,0.00012329,2]
[342167867,1731528439847,-177.997683,0.00012329,2]
[342167868,1731528439871,-177.997683,0.00012329,2]
[342167869,1731528439894,-151.0,0.00012329,2]
[342167870,1731528439917,-151.0,0.00012329,2]
[342167871,1731528439940,-151.0,0.00012329,2]
[342167872,1731528439965,-151.0,0.00012329,2]
[342167873,1731528439989,-151.0,0.00012329,2]
[342167874,1731528440021,-151.0,0.00012329,2]
[342167875,1731528440044,-285.280053,0.00012329,2]
[342167876,1731528440067,-285.280053,0.00012329,2]
[342167877,1731528440089,-285.280053,0.00012329,2]
[342167878,1731528440111,-285.280053,0.00012329,2]
[342167879,1731528440133,-151.0,0.00012329,2]
[342167880,1731528440155,-151.0,0.00012329,2]
[342167881,1731528440176,-221.919471,0.00012329,2]
[342167882,1731528440198,-221.919471,0.00012329,2]
[342167883,1731528440219,-221.919471,0.00012329,2]
[342167884,1731528440241,-221.919471,0.00012329,2]
[342167885,1731528440268,-157.116972,0.00012329,2]
[342167886,1731528440289,-157.116972,0.00012329,2]
[342167887,1731528440310,-157.116972,0.00012329,2]